bitfinex/quotes_SOLUSD_20250724
["timestamp","ask_amount","ask_price","bid_price","bid_amount"]
[1753381909583,37.62,190.06,190.05,8.54080245]
[1753381909988,37.62,190.06,190.05,13.80257566]
[1753381910591,38.3,190.06,189.99,4.13694944]
[1753381910786,9.22080245,190.05,189.99,8.73024831]
[1753381911113,8.54080245,190.03,189.99,3.46694944]
[1753381911297,37.62,190.02,189.99,3.46694944]
[1753381911494,0.68,190.01,189.99,3.46694944]
[1753381912193,1.5065,190.04,190.0,8.54080245]
[1753381912501,37.62,190.02,190.01,8.54080245]
[1753381913202,37.62,190.05,190.02,26.0]
[1753381913507,37.62,190.06,190.04,8.54080245]
[1753381913707,37.62,190.06,190.05,8.54080245]
[1753381913908,37.62,190.06,190.03,5.262327]
[1753381914094,37.62,190.06,190.05,8.54080245]
[1753381914290,37.62,190.06,190.03,5.262327]
[1753381914491,37.62,190.06,190.04,8.54080245]
[1753381914911,38.3,190.06,190.04,8.54080245]
[1753381915508,0.68,190.05,190.02,8.54080245]
[1753381915895,0.68,190.05,190.03,8.54080245]
[1753381916492,0.68,190.05,190.02,8.54080245]
[1753381917010,9.22080245,190.04,189.99,3.46694944]
[1753381917217,9.22080245,190.03,189.99,3.46694944]
[1753381917514,46.88080245,190.02,189.99,3.46694944]
[1753381917813,0.72,190.01,189.99,3.46694944]
[1753381918009,8.54080245,190.0,189.99,3.46694944]
[1753381918405,9.26080245,190.0,189.99,3.46694944]
[1753381918993,26.0,189.97,189.95,0.06]
[1753381919225,63.22980956,189.96,189.95,0.06]
[1753381919514,38.34,189.96,189.95,0.06]
[1753381919715,46.88080245,189.96,189.95,0.06]
[1753381920514,37.62,189.96,189.95,8.60080245]
[1753381920906,38.34,189.96,189.95,0.06]
[1753381921109,37.62,189.96,189.95,0.06]
[1753381921893,37.62,189.96,189.95,9.32080245]
[1753381922111,37.62,189.96,189.95,14.58534575]
[1753381922299,37.62,189.96,189.95,0.06]
[1753381923410,38.34,189.96,189.95,0.06]
[1753381924011,37.62,189.96,189.95,0.06]
[1753381924311,38.34,189.96,189.95,0.06]
[1753381925420,52.14506861,189.96,189.95,0.06]
[1753381925596,46.88080245,189.96,189.95,0.06]
[1753381926213,52.14506861,189.96,189.95,0.06]
[1753381926519,46.88080245,189.96,189.95,0.06]
[1753381926696,38.34,189.96,189.95,0.06]
[1753381926897,37.62,189.96,189.95,0.06]
[1753381927101,38.34,189.96,189.95,0.06]
[1753381927318,37.62,189.96,189.95,0.06]
[1753381927815,38.34,189.96,189.95,0.06]
[1753381928519,46.88080245,189.96,189.95,0.06]
[1753381928712,9.26080245,189.96,189.95,0.06]
[1753381928916,69.21407572,189.96,189.95,0.06]
[1753381930628,69.21407572,189.96,189.91,0.06]
[1753381930629,42.78468397,189.92,189.91,0.06]
[1753381930927,42.78468397,189.92,189.81,5.26837425]
[1753381930928,17.06900711,189.9,189.81,5.26837425]
[1753381931219,8.54080245,189.86,189.81,5.26837425]
[1753381931414,46.82080245,189.85,189.8,0.06]
[1753381931722,37.62,189.84,189.8,5.32862684]
[1753381932022,37.62,189.84,189.8,6.04862684]
[1753381932399,46.16080245,189.84,189.8,0.06]
[1753381932618,9.20080245,189.83,189.8,0.06]
[1753381932803,46.16080245,189.82,189.8,0.06]
[1753381932997,46.82080245,189.82,189.8,0.06]
[1753381933404,9.20080245,189.81,189.8,0.06]
[1753381933923,31.53823588,189.81,189.8,0.06]
[1753381934302,22.99743343,189.81,189.8,0.06]
[1753381934504,31.53823588,189.81,189.8,0.06]
[1753381934702,26.26980956,189.81,189.8,0.06]
[1753381934924,25.98548642,189.81,189.8,0.06]
[1753381935132,26.0,189.82,189.8,0.06]
[1753381935320,37.64,189.81,189.8,0.06]
[1753381936004,8.54080245,189.82,189.8,0.06]
[1753381936205,63.62548642,189.81,189.8,0.06]
[1753381937424,55.08468397,189.81,189.8,0.06]
[1753381937727,0.66,189.85,189.8,0.06]
[1753381937911,8.54080245,189.88,189.82,8.54080245]
[1753381938102,149.66,189.89,189.83,8.54080245]
[1753381938103,0.66,189.89,189.83,8.54080245]
[1753381938423,37.64,189.88,189.83,9.26080245]
[1753381938614,37.64,189.88,189.83,0.72]
[1753381939025,8.54080245,189.84,189.8,0.06]
[1753381939325,25.32548642,189.81,189.8,0.06]
[1753381939524,46.18080245,189.81,189.77,0.06]
[1753381939727,8.54080245,189.78,189.77,0.06]
[1753381940026,46.18080245,189.78,189.77,0.06]
[1753381941724,52.33438473,189.78,189.77,0.06]
[1753381941922,69.1190687,189.78,189.77,0.06]
[1753381943114,71.86606112,189.78,189.77,0.06]
[1753381943505,71.86606112,189.78,189.76,0.06]
[1753381943506,17.06900711,189.77,189.76,0.06]
[1753381943720,26.20980956,189.77,189.76,0.06]
[1753381944138,43.06900711,189.75,189.74,0.06]
[1753381944314,97.81061201,189.75,189.74,0.06]
[1753381944513,98.41061201,189.75,189.74,0.06]
[1753381945317,26.78468397,189.73,189.72,0.06]
[1753381945506,42.78468397,189.7,189.65,0.2]
[1753381945712,43.06900711,189.66,189.65,0.2]
[1753381946013,56.88240262,189.66,189.65,0.2]
[1753381946214,57.42240262,189.66,189.65,0.2]
[1753381946632,95.08240262,189.66,189.65,0.2]
[1753381947416,89.80980956,189.66,189.65,0.2]
[1753381947640,15.81,189.76,189.65,0.2]
[1753381947641,23.17473747,189.76,189.65,0.2]
[1753381947812,43.212769,189.82,189.65,14.69355355]
[1753381947813,8.54080245,189.71,189.65,14.69355355]
[1753381948012,37.66,189.7,189.65,14.69355355]
[1753381948212,37.66,189.7,189.65,0.2]
[1753381948213,17.06900711,189.69,189.65,0.2]
[1753381948509,8.82512559,189.66,189.65,0.2]
[1753381948730,63.32980956,189.66,189.65,0.2]
[1753381949314,63.86980956,189.66,189.65,0.2]
[1753381950129,69.14240262,189.66,189.65,0.2]
[1753381951116,89.32980956,189.66,189.65,0.2]
[1753381951326,34.54080245,189.66,189.65,0.2]
[1753381951531,8.54080245,189.71,189.65,14.69367207]
[1753381951815,0.54,189.73,189.65,14.69367207]
[1753381951816,37.72,189.7,189.66,8.54080245]
[1753381952015,157.54080245,189.74,189.68,8.54080245]
[1753381952316,37.74,189.73,189.68,8.54080245]
[1753381952629,37.74,189.73,189.68,9.22080245]
[1753381953134,46.28080245,189.73,189.68,9.22080245]
[1753381953311,51.55148079,189.73,189.68,0.68]
[1753381953516,17.06900711,189.68,189.65,0.2]
[1753381953736,46.28080245,189.67,189.65,0.2]
[1753381953936,25.60980956,189.66,189.65,0.2]
[1753381954127,26.14980956,189.66,189.65,0.2]
[1753381954333,31.42240262,189.66,189.65,0.2]
[1753381955635,25.60980956,189.66,189.65,0.2]
[1753381955937,63.36980956,189.66,189.65,0.2]
[1753381956142,68.64240262,189.66,189.65,0.2]
[1753381956332,69.18240262,189.66,189.65,0.2]
[1753381957722,68.64240262,189.66,189.65,0.2]
[1753381959449,95.18240262,189.66,189.65,0.2]
[1753381960446,69.18240262,189.66,189.65,0.2]
[1753381961039,42.78468397,189.66,189.65,0.2]
[1753381961241,94.35807948,189.66,189.65,0.2]
[1753381961457,94.50024105,189.66,189.65,0.2]
[1753381961743,95.04024105,189.66,189.65,0.2]
[1753381961935,95.18240262,189.66,189.65,0.2]
[1753381962329,69.18240262,189.66,189.65,0.2]
[1753381963341,71.92601242,189.66,189.65,0.2]
[1753381963544,80.46681487,189.66,189.65,1e-08]
[1753381963837,17.06900711,189.62,189.61,0.06]
[1753381964016,63.34980956,189.62,189.61,0.06]
[1753381964218,63.88980956,189.62,189.61,0.06]
[1753381965350,69.16351486,189.62,189.61,0.06]
[1753381965525,0.28432314,189.61,189.55,0.2]
[1753381965720,27.78430956,189.61,189.55,0.2]
[1753381966636,27.78430956,189.61,189.6,1e-08]
[1753381966842,43.06900711,189.59,189.58,1e-08]
[1753381967148,43.06900711,189.59,189.55,0.2]
[1753381967149,42.78468397,189.56,189.55,0.2]
[1753381967450,94.60518411,189.56,189.55,0.2]
[1753381967953,43.06900711,189.56,189.55,0.2]
[1753381968132,43.06900711,189.56,189.55,0.88]
[1753381968133,63.72,189.56,189.55,0.88]
[1753381968452,89.22764799,189.56,189.55,0.2]
[1753381968942,89.90980956,189.56,189.55,0.2]
[1753381969433,95.18518411,189.56,189.55,0.2]
[1753381970157,16.78468397,189.51,189.5,0.06]
[1753381970455,89.36980956,189.51,189.5,0.06]
[1753381970650,89.90980956,189.51,189.5,0.06]
[1753381971149,0.28432314,189.5,189.49,0.2]
[1753381971325,26.14980956,189.5,189.49,0.2]
[1753381971524,31.42685441,189.5,189.49,0.2]
[1753381972731,2.115004,189.52,189.49,0.2]
[1753381973132,37.8,189.51,189.5,0.68]
[1753381973560,37.8,189.51,189.49,0.2]
[1753381973731,37.8,189.51,189.49,0.88]
[1753381974447,43.07677551,189.51,189.49,0.2]
[1753381974654,51.61757796,189.51,189.49,0.2]
[1753381974945,25.32548642,189.5,189.49,0.2]
[1753381975202,25.60980956,189.5,189.49,0.2]
[1753381975660,30.88685441,189.5,189.49,0.2]
[1753381975968,22.34605196,189.5,189.49,0.2]
[1753381976130,16.78468397,189.5,189.49,0.2]
[1753381976637,25.32548642,189.5,189.49,0.2]
[1753381977170,26.28432314,189.53,189.49,0.88]
[1753381977451,37.92,189.52,189.49,0.88]
[1753381977648,37.92,189.52,189.5,13.81115289]
[1753381977835,37.92,189.52,189.51,0.69]
[1753381978550,13.12115289,189.58,189.51,13.81115289]
[1753381978751,162.18449553,189.62,189.49,5.47725574]
[1753381978752,38.08,189.57,189.53,13.12115289]
[1753381978962,38.08,189.57,189.54,0.69]
[1753381979369,38.08,189.57,189.55,0.69]
[1753381980186,38.08,189.57,189.53,18.39732052]
[1753381980466,43.35509627,189.57,189.53,0.69]
[1753381981162,56.47624916,189.57,189.53,0.69]
[1753381981381,16.78468397,189.53,189.49,0.2]
[1753381981675,0.54,189.56,189.49,0.2]
[1753381981847,16.78468397,189.56,189.52,13.12115289]
[1753381982161,16.78468397,189.56,189.53,0.69]
[1753381982162,38.12,189.55,189.53,0.69]
[1753381982367,38.12,189.55,189.54,0.69]
[1753381983160,38.12,189.55,189.52,13.12115289]
[1753381983472,16.78468397,189.54,189.49,14.01115289]
[1753381983776,16.78468397,189.52,189.49,0.2]
[1753381983975,38.18,189.51,189.5,0.69]
[1753381984150,38.18,189.51,189.49,0.89]
[1753381984482,38.18,189.51,189.5,0.69]
[1753381984972,38.18,189.51,189.5,13.81115289]
[1753381985775,38.18,189.51,189.5,19.08819774]
[1753381986445,38.18,189.51,189.5,5.96704485]
[1753381986644,38.18,189.51,189.5,0.69]
[1753381987665,2.74292325,189.56,189.52,6.1405]
[1753381987880,16.78468397,189.61,189.55,13.12115289]
[1753381988180,38.16,189.6,189.57,13.12115289]
[1753381988467,38.16,189.6,189.58,0.69]
[1753381989065,38.16,189.6,189.57,13.12115289]
[1753381989272,43.43427016,189.6,189.56,13.81115289]
[1753381989769,38.16,189.6,189.56,13.81115289]
[1753381989974,38.16,189.6,189.56,13.12115289]
[1753381990377,16.78468397,189.59,189.56,13.12115289]
[1753381990681,38.14,189.58,189.56,0.69]
[1753381991346,38.14,189.58,189.52,6.1405]
[1753381991549,56.53606035,189.58,189.52,13.81115289]
[1753381991759,16.78468397,189.57,189.52,13.81115289]
[1753381991961,38.14,189.56,189.53,13.81115289]
[1753381992155,38.14,189.56,189.54,0.69]
[1753381992374,38.14,189.56,189.51,1.5985]
[1753381992554,38.14,189.56,189.52,13.81115289]
[1753381992980,17.09900711,189.6,189.55,13.12115289]
[1753381993280,38.12,189.59,189.56,13.81115289]
[1753381993485,0.03,189.6,189.58,13.12115289]
[1753381993656,0.03,189.6,189.59,13.12115289]
[1753381993857,38.15,189.6,189.59,13.81115289]
[1753381997172,38.15,189.6,189.59,9.26040278]
[1753381997370,38.15,189.6,189.59,14.53494257]
[1753381997756,38.15,189.6,189.59,9.26040278]
[1753381998584,38.15,189.6,189.59,14.53494257]
[1753381998969,38.15,189.6,189.59,16.08904257]
[1753381998970,0.03,189.6,189.59,16.08904257]
[1753382000999,0.03,189.6,189.59,2.2441]
[1753382001166,0.03,189.6,189.59,9.26040278]
[1753382001888,0.03,189.6,189.59,14.53494257]
[1753382002076,0.03,189.6,189.59,9.26040278]
[1753382002886,0.03,189.6,189.59,14.53494257]
[1753382005396,0.03,189.64,189.59,44.50597603]
[1753382005598,0.03,189.65,189.63,18.69490556]
[1753382005773,0.03,189.65,189.64,17.14080556]
[1753382005974,0.03,189.65,189.64,17.83080556]
[1753382006177,0.03,189.65,189.59,18.46088928]
[1753382006389,0.03,189.65,189.63,8.57040278]
[1753382006597,38.0,189.64,189.63,9.26040278]
[1753382007096,38.0,189.64,189.63,14.53382998]
[1753382008094,38.0,189.64,189.63,9.26040278]
[1753382008609,38.0,189.64,189.63,14.53382998]
[1753382009985,38.0,189.64,189.63,9.26040278]
[1753382010385,38.0,189.64,189.58,1.5541]
[1753382010593,28.901431,189.59,189.57,9.27040278]
[1753382010789,28.901431,189.59,189.58,9.27040278]
[1753382011301,28.901431,189.59,189.58,14.54522079]
[1753382012301,28.901431,189.59,189.55,0.7]
[1753382012679,28.901431,189.59,189.55,5.97554193]
[1753382013098,28.901431,189.59,189.56,9.27040278]
[1753382013278,28.901431,189.59,189.58,13.84522079]
[1753382013478,28.901431,189.59,189.58,14.54522079]
[1753382015074,28.901431,189.59,189.58,16.13762079]
[1753382015695,2.28936857,189.59,189.58,42.13762079]
[1753382016004,1.56936857,189.59,189.58,42.13762079]
[1753382016199,1.56936857,189.59,189.58,2.2924]
[1753382016382,1.56936857,189.59,189.55,0.7]
[1753382016580,1.56936857,189.59,189.55,8.57040278]
[1753382016798,1.56936857,189.59,189.55,34.57040278]
[1753382017001,1.56936857,189.59,189.55,35.27040278]
[1753382017399,1.56936857,189.59,189.55,14.54604035]
[1753382017581,0.72,189.58,189.51,13.90696236]
[1753382017782,46.51040278,189.57,189.51,5.33655958]
[1753382017998,8.57040278,189.55,189.51,0.06]
[1753382018305,37.94,189.54,189.51,0.06]
[1753382018702,37.94,189.54,189.53,8.57040278]
[1753382019004,37.94,189.54,189.53,9.27040278]
[1753382019599,37.94,189.54,189.53,14.54661235]
[1753382021278,37.94,189.54,189.53,13.84661235]
[1753382021484,37.94,189.54,189.53,5.27620957]
[1753382021705,37.94,189.54,189.51,0.06]
[1753382021888,37.94,189.54,189.51,14.60707195]
[1753382022083,37.94,189.54,189.51,8.63040278]
[1753382022294,38.66,189.54,189.51,0.06]
[1753382022603,37.94,189.54,189.51,0.06]
[1753382023182,8.57040278,189.52,189.51,0.06]
[1753382023379,25.63940989,189.52,189.51,0.06]
[1753382023580,0.72,189.52,189.51,0.06]
[1753382023784,37.96,189.52,189.51,0.06]
[1753382024821,37.98,189.52,189.51,0.06]
[1753382025494,37.98,189.52,189.51,8.63040278]
[1753382026111,37.98,189.52,189.51,14.60716917]
[1753382026804,37.96,189.55,189.51,14.60716917]
[1753382027004,37.96,189.55,189.54,8.57040278]
[1753382027999,52.52627954,189.55,189.51,0.06]
[1753382028202,8.57040278,189.52,189.51,0.06]
[1753382028405,38.22,189.52,189.51,0.06]
[1753382028604,38.94,189.52,189.51,0.06]
[1753382028997,0.28432314,189.54,189.51,0.06]
[1753382028998,0.72,189.58,189.51,0.06]
[1753382029205,0.72,189.61,189.57,8.57040278]
[1753382029407,149.0,189.62,189.58,8.57040278]
[1753382029408,39.78936857,189.59,189.58,8.57040278]
[1753382030093,39.78936857,189.59,189.58,13.84522079]
[1753382030293,1.56936857,189.59,189.58,14.54522079]
[1753382031414,1e-08,189.59,189.58,57.6142279]
[1753382031590,1e-08,189.59,189.58,47.19312079]
[1753382032907,1e-08,189.59,189.58,38.2621279]
[1753382033084,0.03,189.64,189.61,26.0]
[1753382033287,0.03,189.64,189.63,8.57040278]
[1753382033796,0.03,189.64,189.63,17.84080556]
[1753382034009,0.03,189.68,189.67,26.0]
[1753382034190,0.03,189.68,189.67,35.27040278]
[1753382035012,0.03,189.68,189.67,40.54271785]
[1753382037112,0.03,189.68,189.67,39.84271785]
[1753382037609,0.03,189.68,189.67,40.50271785]
[1753382040132,0.03,189.68,189.67,13.84271785]
[1753382040292,0.03,189.68,189.64,5.27314912]
[1753382040494,0.03,189.68,189.67,8.57040278]
[1753382041302,9.26040278,189.68,189.6,0.66]
[1753382041505,38.72,189.67,189.62,8.57040278]
[1753382041715,38.06,189.67,189.65,8.57040278]
[1753382041911,38.06,189.67,189.63,8.57040278]
[1753382041912,0.66,189.66,189.63,8.57040278]
[1753382042108,38.06,189.67,189.64,8.57040278]
[1753382042314,38.06,189.67,189.65,8.57040278]
[1753382042511,38.06,189.67,189.64,8.57040278]
[1753382042712,0.03,189.68,189.64,5.27301202]
[1753382042918,38.07,189.68,189.67,8.57040278]
[1753382044402,38.07,189.68,189.66,8.57040278]
[1753382044609,38.73,189.68,189.65,8.57040278]
[1753382044806,38.73,189.68,189.65,13.84314753]
[1753382045102,38.07,189.68,189.65,13.84314753]
[1753382045316,38.07,189.68,189.67,8.57040278]
[1753382045627,38.07,189.68,189.66,8.57040278]
[1753382046031,38.07,189.68,189.67,8.57040278]
[1753382046406,38.07,189.68,189.64,5.27309793]
[1753382046635,38.73,189.68,189.66,8.57040278]
[1753382046919,38.73,189.68,189.64,5.27314912]
[1753382046920,38.07,189.68,189.64,5.27314912]
[1753382047123,38.07,189.68,189.61,26.0]
[1753382047124,0.66,189.67,189.61,26.0]
[1753382047321,38.07,189.68,189.65,8.57040278]
[1753382047825,0.03,189.68,189.61,26.0]
[1753382048015,0.03,189.72,189.67,14.96560278]
[1753382048217,0.03,189.72,189.71,8.57040278]
[1753382048409,0.1,189.79,189.71,8.57040278]
[1753382048623,0.1,189.79,189.78,8.57040278]
[1753382049138,0.1,189.79,189.75,26.66]
[1753382049433,0.1,189.79,189.78,8.57040278]
[1753382050201,0.1,189.79,189.78,9.23040278]
[1753382050820,0.1,189.79,189.78,14.49966192]
[1753382051232,0.1,189.79,189.78,5.26925914]
[1753382051530,0.1,189.79,189.78,14.49966192]
[1753382053227,0.76,189.79,189.75,5.27009222]
[1753382053444,0.66,189.78,189.75,5.27009222]
[1753382053738,0.1,189.79,189.77,8.57040278]
[1753382053940,0.1,189.79,189.78,34.57040278]
[1753382054329,0.03,189.81,189.79,16.78468397]
[1753382054530,7.25597263,189.94,189.79,16.78468397]
[1753382054531,38.36,189.9,189.83,26.0]
[1753382054857,38.36,189.9,189.86,5.26686844]
[1753382055048,38.36,189.9,189.88,8.57040278]
[1753382055231,39.02,189.9,189.88,8.57040278]
[1753382055632,0.66,189.89,189.87,8.57040278]
[1753382056133,0.66,189.88,189.79,0.66]
[1753382056336,0.66,189.88,189.85,8.57040278]
[1753382056530,43.62597911,189.9,189.8,26.0]
[1753382056531,0.66,189.87,189.84,8.57040278]
[1753382056749,43.62597911,189.9,189.85,8.57040278]
[1753382056949,5.92626115,189.89,189.81,26.66]
[1753382057144,0.66,189.89,189.85,8.57040278]
[1753382057350,0.66,189.88,189.85,8.57040278]
[1753382057538,0.66,189.87,189.84,8.57040278]
[1753382058258,0.66,189.87,189.85,8.57040278]
[1753382058731,0.66,189.86,189.79,26.0]
[1753382059052,0.03,189.91,189.85,8.57040278]
[1753382059260,38.36,189.9,189.89,8.57040278]
[1753382059637,38.36,189.9,189.88,8.57040278]
[1753382060274,0.66,189.89,189.85,8.57040278]
[1753382060564,38.36,189.9,189.88,8.57040278]
[1753382060740,38.36,189.9,189.89,8.57040278]
[1753382062939,38.36,189.9,189.85,5.2673163]
[1753382063135,39.02,189.9,189.87,8.57040278]
[1753382063340,0.66,189.89,189.87,8.57040278]
[1753382063573,0.66,189.88,189.84,8.57040278]
[1753382064278,0.66,189.87,189.84,8.57040278]
[1753382064438,38.34,189.86,189.84,8.57040278]
[1753382064762,38.34,189.86,189.85,8.57040278]
[1753382064978,38.34,189.86,189.85,9.23040278]
[1753382065459,0.03,189.91,189.85,9.23040278]
[1753382065460,38.34,189.9,189.85,9.23040278]
[1753382065667,39.0,189.9,189.85,26.0]
[1753382065838,0.66,189.89,189.86,8.57040278]
[1753382066040,0.66,189.88,189.86,8.57040278]
[1753382066261,38.34,189.9,189.86,8.57040278]
[1753382066450,0.66,189.88,189.85,34.57040278]
[1753382066658,0.66,189.88,189.84,8.57040278]
[1753382066854,52.17650198,189.9,189.83,5.26782587]
[1753382066855,0.66,189.87,189.83,8.57040278]
[1753382067050,39.0,189.86,189.83,8.57040278]
[1753382067248,38.34,189.86,189.84,8.57040278]
[1753382068372,38.34,189.86,189.84,13.83780994]
[1753382068547,38.34,189.86,189.85,8.57040278]
[1753382068744,38.34,189.86,189.85,9.28040278]
[1753382069047,38.34,189.89,189.85,9.28040278]
[1753382069252,38.34,189.89,189.88,8.57040278]
[1753382069472,38.34,189.89,189.84,5.26740716]
[1753382069473,38.34,189.89,189.87,8.57040278]
[1753382070448,38.34,189.89,189.84,5.97740716]
[1753382070768,0.7,189.88,189.85,8.57040278]
[1753382071549,0.7,189.87,189.84,8.57040278]
[1753382072253,0.7,189.87,189.84,5.26747877]
[1753382072453,38.34,189.89,189.84,13.83788155]
[1753382072650,0.7,189.88,189.84,13.83788155]
[1753382072866,38.34,189.89,189.85,8.57040278]
[1753382073079,38.34,189.89,189.88,8.57040278]
[1753382073579,38.34,189.89,189.87,8.57040278]
[1753382074087,38.34,189.89,189.88,9.28040278]
[1753382074765,38.34,189.89,189.88,8.57040278]
[1753382074975,38.34,189.89,189.85,5.26708055]
[1753382075284,38.34,189.89,189.86,8.57040278]
[1753382077092,0.03,189.91,189.88,8.57040278]
[1753382077382,38.28,189.9,189.89,8.57040278]
[1753382077594,38.28,189.9,189.86,8.57040278]
[1753382077756,38.98,189.9,189.85,8.57040278]
[1753382077951,38.98,189.9,189.86,8.57040278]
[1753382078879,38.98,189.9,189.85,26.0]
[1753382079054,38.98,189.9,189.86,8.57040278]
[1753382079268,38.98,189.9,189.85,8.57040278]
[1753382079456,8.57040278,189.87,189.8,0.71]
[1753382079682,8.57040278,189.84,189.78,8.57040278]
[1753382079864,38.24,189.83,189.8,8.57040278]
[1753382080265,38.24,189.83,189.78,13.83966192]
[1753382080470,46.81040278,189.83,189.78,5.26925914]
[1753382080670,8.57040278,189.81,189.76,5.26961494]
[1753382081188,0.7,189.8,189.76,5.26961494]
[1753382081371,38.28,189.79,189.76,5.26961494]
[1753382081569,38.28,189.79,189.76,13.84001772]
[1753382081785,38.28,189.82,189.78,8.57040278]
[1753382081968,38.28,189.82,189.79,8.57040278]
[1753382082163,38.28,189.82,189.79,9.28040278]
[1753382082888,38.28,189.82,189.79,0.71]
[1753382083088,38.28,189.82,189.79,5.97878431]
[1753382083671,0.7,189.81,189.77,5.26928662]
[1753382084273,0.7,189.81,189.75,8.57040278]
[1753382084274,9.27040278,189.8,189.75,26.0]
[1753382084483,9.27040278,189.79,189.74,5.33029593]
[1753382084685,38.96,189.78,189.74,5.33029593]
[1753382084988,38.26,189.78,189.75,0.71]
[1753382085185,38.26,189.78,189.75,5.27005405]
[1753382085691,38.26,189.78,189.75,13.84045683]
[1753382086584,38.26,189.78,189.74,13.90077275]
[1753382086794,38.26,189.78,189.74,14.61077275]
[1753382086982,38.26,189.78,189.75,9.28040278]
[1753382087380,38.26,189.78,189.76,0.71]
[1753382087878,38.26,189.78,189.74,8.63040278]
[1753382088075,0.7,189.77,189.74,0.06]
[1753382088290,0.7,189.76,189.74,0.06]
[1753382088795,0.7,189.75,189.74,0.06]
[1753382089794,52.79987747,189.78,189.74,0.06]
[1753382089991,0.7,189.77,189.74,0.06]
[1753382090486,0.7,189.76,189.74,0.06]
[1753382090673,9.27040278,189.76,189.74,0.06]
[1753382090875,0.7,189.75,189.74,0.06]
[1753382091277,0.28432314,189.72,189.62,0.2]
[1753382091477,34.2313,189.74,189.62,0.2]
[1753382091478,8.57040278,189.69,189.63,8.57040278]
[1753382091687,38.5,189.68,189.67,8.57040278]
[1753382091903,38.52,189.68,189.67,9.28040278]
[1753382092794,38.52,189.68,189.67,14.55271785]
[1753382093404,38.52,189.68,189.66,13.84296961]
[1753382093704,0.7,189.68,189.64,13.84328592]
[1753382093998,0.7,189.75,189.67,8.57040278]
[1753382094296,8.57040278,189.78,189.72,8.57040278]
[1753382094297,38.58,189.74,189.72,8.57040278]
[1753382094499,38.6,189.75,189.72,8.57040278]
[1753382095082,0.7,189.74,189.72,8.57040278]
[1753382095405,38.6,189.75,189.72,8.57040278]
[1753382095606,38.6,189.75,189.73,8.57040278]
[1753382096307,38.56,189.76,189.74,9.28040278]
[1753382096601,38.56,189.78,189.75,8.57040278]
[1753382096797,38.56,189.78,189.76,13.83997403]
[1753382097202,38.56,189.78,189.76,5.26957125]
[1753382097505,38.56,189.78,189.76,13.83997403]
[1753382097711,39.23,189.78,189.75,13.84045716]
[1753382097877,0.67,189.77,189.74,8.57040278]
[1753382098796,38.56,189.78,189.75,13.84040761]
[1753382099190,39.23,189.78,189.75,13.84040761]
[1753382100092,39.23,189.78,189.72,5.33092557]
[1753382100279,39.23,189.78,189.72,0.06]
[1753382100280,9.24040278,189.77,189.72,0.06]
[1753382100809,0.67,189.76,189.72,8.63040278]
[1753382100980,0.67,189.75,189.72,0.06]
[1753382101181,38.5,189.74,189.72,0.06]
[1753382101589,38.5,189.74,189.72,8.63040278]
[1753382101790,38.5,189.74,189.73,8.57040278]
[1753382101989,38.5,189.74,189.73,9.28040278]
[1753382102308,38.5,189.74,189.72,5.3309037]
[1753382102605,38.5,189.74,189.73,8.57040278]
[1753382103004,38.5,189.74,189.72,0.06]
[1753382103209,9.24040278,189.73,189.72,0.06]
[1753382103506,16.78468397,189.72,189.62,0.2]
[1753382103811,8.57040278,189.68,189.63,5.27337631]